[Event "56th Biel Festival MTO 2023"]
[White "Jinan Jomon"]
[Black "Ermitsch,Magnus"]
[Site "Biel"]
[Round "9.23"]
[Annotator "ChessBase"]
[Result "1-0"]
[Date "2023.07.27"]
[WhiteElo "2409"]
[BlackElo "2232"]
[PlyCount "53"]
[TimeControl "60"]

1. c4 {[%emt 0:0:0]} c6 {[%emt 0:0:0]} 2. Nf3 {[%emt 0:0:0]} d5 {[%emt 0:0:0]} 3. e3 {[%emt 0:0:0]} Nf6 {[%emt 0:0:0]} 4. Nc3 {[%emt 0:0:0]} e6 {[%emt 0:0:0]} 5. b3 {[%emt 0:0:0]} Nbd7 {[%emt 0:0:0]} 6. d4 {[%emt 0:0:19]} Bb4 {[%emt 0:0:0]} 7. Bd2 {[%emt 0:0:6]} O-O {[%emt 0:0:0]} 8. Be2 {[%emt 0:6:36]} b6 {[%emt 0:1:11]} 9. O-O {[%emt 0:0:13]} Qe7 {[%emt 0:3:26]} 10. Qc2 {[%emt 0:5:10]} Bb7 {[%emt 0:1:7]} 11. Rad1 {[%emt 0:13:43]} Rac8 {[%emt 0:2:55]} 12. Qb2 {[%emt 0:11:0]} Rfd8 {[%emt 0:4:7]} 13. Rfe1 {[%emt 0:7:43]} c5 {[%emt 0:12:14]} 14. cxd5 {[%emt 0:9:24]} cxd4 {[%emt 0:6:25]} 15. Nxd4 {[%emt 0:0:35]} exd5 {[%emt 0:9:0]} 16. Nb1 {[%emt 0:5:29]} g6 {[%emt 0:3:59]} 17. Bxb4 {[%emt 0:2:17]} Qxb4 {[%emt 0:1:11]} 18. Nd2 {[%emt 0:7:16]} Qe7 {[%emt 0:4:13]} 19. Bf1 {[%emt 0:8:47]} Ne4 {[%emt 0:1:18]} 20. Nxe4 {[%emt 0:3:42]} dxe4 {[%emt 0:0:46]} 21. Nb5 {[%emt 0:0:10]} Ra8 {[%emt 0:6:44]} 22. Rd4 {[%emt 0:3:30]} Nc5 {[%emt 0:5:4]} 23. Red1 {[%emt 0:0:40]} Qg5 {[%emt 0:10:39]} 24. Nd6 {[%emt 0:6:26]} Qg4 {[%emt 0:5:38]} 25. f4 {[%emt 0:0:46]} Qe6 {[%emt 0:3:37]} 26. h3 {[%emt 0:3:23]} Kf8 {[%emt 0:4:43]} 27. Kh2 {[%emt 0:0:0]} 1-0

[Event "56th Biel Festival MTO 2023"]
[White "Ajay Krishna,S."]
[Black "Wang,Chuqiao"]
[Site "Biel"]
[Round "9.24"]
[Annotator "ChessBase"]
[Result "1-0"]
[Date "2023.07.27"]
[WhiteElo "2390"]
[BlackElo "2161"]
[PlyCount "77"]
[TimeControl "60"]

1. Nf3 {[%emt 0:0:0]} Nf6 {[%emt 0:0:0]} 2. c4 {[%emt 0:0:0]} e6 {[%emt 0:0:0]} 3. g3 {[%emt 0:0:0]} d5 {[%emt 0:0:0]} 4. Bg2 {[%emt 0:0:0]} c5 {[%emt 0:0:0]} 5. cxd5 {[%emt 0:0:0]} exd5 {[%emt 0:0:0]} 6. d4 {[%emt 0:0:0]} Nc6 {[%emt 0:0:0]} 7. O-O {[%emt 0:0:0]} Be7 {[%emt 0:0:0]} 8. Nc3 {[%emt 0:0:0]} O-O {[%emt 0:0:0]} 9. dxc5 {[%emt 0:0:0]} Bxc5 {[%emt 0:0:0]} 10. a3 {[%emt 0:0:0]} a5 {[%emt 0:0:0]} 11. Bg5 {[%emt 0:3:40]} d4 {[%emt 0:0:43]} 12. Ne4 {[%emt 0:8:51]} Be7 {[%emt 0:0:19]} 13. Bxf6 {[%emt 0:0:25]} Bxf6 {[%emt 0:0:8]} 14. Rc1 {[%emt 0:0:53]} Re8 {[%emt 0:10:39]} 15. Ne1 {[%emt 0:5:40]} Qe7 {[%emt 0:7:30]} 16. Nd3 {[%emt 0:8:23]} Rb8 {[%emt 0:6:47]} 17. Nf4 {[%emt 0:5:54]} Qd8 {[%emt 0:6:28]} 18. Qb3 {[%emt 0:8:55]} Be5 {[%emt 0:4:51]} 19. Nd5 {[%emt 0:11:12]} Bd6 {[%emt 0:4:50]} 20. Qb5 {[%emt 0:11:34]} Be6 {[%emt 0:5:47]} 21. Nxd6 {[%emt 0:10:13]} Qxd6 {[%emt 0:0:16]} 22. Nf4 {[%emt 0:0:7]} Bd7 {[%emt 0:8:17]} 23. Rfe1 {[%emt 0:8:36]} Rec8 {[%emt 0:7:59]} 24. Qb6 {[%emt 0:1:0]} Be8 {[%emt 0:10:20]} 25. Red1 {[%emt 0:4:48]} Qe7 {[%emt 0:0:0]} 26. Qb5 {[%emt 0:0:29]} Rd8 {[%emt 0:1:0]} 27. Qc5 {[%emt 0:6:8]} Kf8 {[%emt 0:4:33]} 28. Qh5 {[%emt 0:2:6]} Kg8 {[%emt 0:1:47]} 29. Qc5 {[%emt 0:0:51]} Kf8 {[%emt 0:0:10]} 30. Qf5 {[%emt 0:0:58]} Kg8 {[%emt 0:1:13]} 31. Nd5 {[%emt 0:1:32]} Qd7 {[%emt 0:4:18]} 32. Qg5 {[%emt 0:0:49]} Qd6 {[%emt 0:1:54]} 33. e3 {[%emt 0:1:59]} dxe3 {[%emt 0:2:3]} 34. Nxe3 {[%emt 0:0:5]} Qg6 {[%emt 0:1:25]} 35. Qf4 {[%emt 0:0:32]} h6 {[%emt 0:7:55]} 36. h4 {[%emt 0:0:7]} Qe6 {[%emt 0:2:33]} 37. Qc7 {[%emt 0:1:49]} Rd7 {[%emt 0:1:39]} 38. Rxd7 {[%emt 0:0:22]} Qxd7 {[%emt 0:3:11]} 39. Rxc6 {[%emt 0:0:13]} 1-0

[Event "56th Biel Festival MTO 2023"]
[White "Schnepp,Gunnar"]
[Black "Haimovich,Tal"]
[Site "Biel"]
[Round "9.25"]
[Annotator "ChessBase"]
[Result "1-0"]
[Date "2023.07.27"]
[WhiteElo "2278"]
[BlackElo "2374"]
[PlyCount "103"]
[TimeControl "60"]

1. e4 {[%emt 0:0:0]} c5 {[%emt 0:0:0]} 2. Nf3 {[%emt 0:0:0]} e6 {[%emt 0:0:0]} 3. d4 {[%emt 0:0:0]} cxd4 {[%emt 0:0:0]} 4. Nxd4 {[%emt 0:0:0]} Nc6 {[%emt 0:0:0]} 5. Nc3 {[%emt 0:0:0]} d6 {[%emt 0:0:0]} 6. Be2 {[%emt 0:0:0]} Nf6 {[%emt 0:0:0]} 7. O-O {[%emt 0:4:0]} Be7 {[%emt 0:0:0]} 8. Be3 {[%emt 0:0:49]} O-O {[%emt 0:0:0]} 9. f4 {[%emt 0:4:19]} e5 {[%emt 0:0:0]} 10. Nb3 {[%emt 0:2:21]} exf4 {[%emt 0:0:0]} 11. Rxf4 {[%emt 0:4:44]} Nd7 {[%emt 0:7:31]} 12. Rf1 {[%emt 0:32:19]} Nde5 {[%emt 0:2:22]} 13. Nd5 {[%emt 0:4:5]} Bg5 {[%emt 0:2:43]} 14. Qd2 {[%emt 0:1:40]} Bxe3+ {[%emt 0:0:53]} 15. Qxe3 {[%emt 0:2:25]} Be6 {[%emt 0:4:41]} 16. Rad1 {[%emt 0:4:12]} Re8 {[%emt 0:8:35]} 17. c4 {[%emt 0:13:55]} b6 {[%emt 0:6:56]} 18. a3 {[%emt 0:5:32]} Rc8 {[%emt 0:2:27]} 19. Qg3 {[%emt 0:1:44]} Ng6 {[%emt 0:2:29]} 20. Ne3 {[%emt 0:6:12]} Nce5 {[%emt 0:8:5]} 21. Nd4 {[%emt 0:0:12]} Re7 {[%emt 0:7:4]} 22. Ndf5 {[%emt 0:2:13]} Rd7 {[%emt 0:3:48]} 23. Rd2 {[%emt 0:1:4]} Qc7 {[%emt 0:9:10]} 24. Rf4 {[%emt 0:0:0]} Rcd8 {[%emt 0:0:0]} 25. h4 {[%emt 0:0:0]} f6 {[%emt 0:0:0]} 26. h5 {[%emt 0:0:0]} Nf8 {[%emt 0:0:0]} 27. h6 {[%emt 0:0:0]} g6 {[%emt 0:0:0]} 28. Ng7 {[%emt 0:0:0]} Rf7 {[%emt 0:0:0]} 29. b3 {[%emt 0:0:0]} a5 {[%emt 0:0:0]} 30. Kh1 {[%emt 0:0:0]} Qc5 {[%emt 0:0:0]} 31. a4 {[%emt 0:0:0]} Qc7 {[%emt 0:0:0]} 32. Bg4 {[%emt 0:0:0]} Nxg4 {[%emt 0:0:0]} 33. Nxg4 {[%emt 0:0:0]} Bxg4 {[%emt 0:0:11]} 34. Qxg4 {[%emt 0:0:0]} Qc5 {[%emt 0:0:30]} 35. Qg3 {[%emt 0:0:0]} Rfd7 {[%emt 0:0:30]} 36. Rd5 {[%emt 0:0:0]} Qa3 {[%emt 0:0:30]} 37. Nf5 {[%emt 0:0:0]} Qb2 {[%emt 0:0:30]} 38. Nxd6 {[%emt 0:0:0]} Ne6 {[%emt 0:0:30]} 39. Nf5 {[%emt 0:0:0]} Rxd5 {[%emt 0:0:30]} 40. Ne7+ {[%emt 0:0:0]} Kf7 {[%emt 0:0:30]} 41. Nxd5 {[%emt 0:5:19]} Qe2 {[%emt 0:38:53]} 42. Rf2 {[%emt 0:3:34]} Qh5+ {[%emt 0:0:30]} 43. Kg1 {[%emt 0:5:29]} Qxh6 {[%emt 0:0:30]} 44. Rf1 {[%emt 0:0:30]} Kg7 {[%emt 0:0:30]} 45. Qc3 {[%emt 0:0:30]} Qg5 {[%emt 0:11:47]} 46. Rxf6 {[%emt 0:4:28]} Nd4 {[%emt 0:0:20]} 47. Qxd4 {[%emt 0:9:36]} Rxd5 {[%emt 0:0:13]} 48. cxd5 {[%emt 0:0:22]} Qxf6 {[%emt 0:0:6]} 49. Qxf6+ {[%emt 0:1:37]} Kxf6 {[%emt 0:0:2]} 50. d6 {[%emt 0:0:37]} h5 {[%emt 0:0:3]} 51. e5+ {[%emt 0:0:59]} Ke6 {[%emt 0:0:5]} 52. g4 {[%emt 0:1:31]} 1-0

[Event "56th Biel Festival MTO 2023"]
[White "Vasquez Toledo,Cristian"]
[Black "Sukandar,Irine Kharisma"]
[Site "Biel"]
[Round "9.26"]
[Annotator "ChessBase"]
[Result "0-1"]
[Date "2023.07.27"]
[WhiteElo "2233"]
[BlackElo "2358"]
[PlyCount "88"]
[TimeControl "60"]

1. e4 {[%emt 0:0:0]} e5 {[%emt 0:0:0]} 2. Nf3 {[%emt 0:0:0]} Nc6 {[%emt 0:0:0]} 3. Bc4 {[%emt 0:0:0]} Bc5 {[%emt 0:0:0]} 4. c3 {[%emt 0:0:0]} Nf6 {[%emt 0:0:0]} 5. d3 {[%emt 0:0:0]} d6 {[%emt 0:0:0]} 6. O-O {[%emt 0:0:0]} a5 {[%emt 0:0:0]} 7. Bb3 {[%emt 0:0:0]} h6 {[%emt 0:0:0]} 8. Re1 {[%emt 0:1:41]} O-O {[%emt 0:0:0]} 9. h3 {[%emt 0:0:31]} Re8 {[%emt 0:4:31]} 10. Nbd2 {[%emt 0:3:59]} Ba7 {[%emt 0:3:24]} 11. Nf1 {[%emt 0:1:32]} Be6 {[%emt 0:2:29]} 12. Ba4 {[%emt 0:2:55]} Rb8 {[%emt 0:4:38]} 13. Ng3 {[%emt 0:1:3]} b5 {[%emt 0:1:17]} 14. Bc2 {[%emt 0:1:32]} d5 {[%emt 0:2:14]} 15. exd5 {[%emt 0:6:38]} Bxd5 {[%emt 0:0:55]} 16. Be3 {[%emt 0:1:19]} Bb6 {[%emt 0:12:37]} 17. Bxb6 {[%emt 0:10:44]} Rxb6 {[%emt 0:4:49]} 18. Re3 {[%emt 0:0:15]} b4 {[%emt 0:13:15]} 19. Ba4 {[%emt 0:1:13]} bxc3 {[%emt 0:5:55]} 20. bxc3 {[%emt 0:1:6]} Re6 {[%emt 0:4:53]} 21. Nd2 {[%emt 0:20:48]} Ne7 {[%emt 0:0:46]} 22. Qe1 {[%emt 0:1:52]} Ng6 {[%emt 0:0:41]} 23. c4 {[%emt 0:3:11]} Ba8 {[%emt 0:1:22]} 24. Nf3 {[%emt 0:7:29]} c5 {[%emt 0:5:6]} 25. Bb5 {[%emt 0:0:35]} Rbd6 {[%emt 0:2:28]} 26. Nxe5 {[%emt 0:5:57]} Nf4 {[%emt 0:2:0]} 27. f3 {[%emt 0:2:29]} g6 {[%emt 0:14:39]} 28. Qc3 {[%emt 0:5:14]} h5 {[%emt 0:0:30]} 29. Rae1 {[%emt 0:1:45]} h4 {[%emt 0:0:28]} 30. Nh1 {[%emt 0:0:28]} Bb7 {[%emt 0:2:52]} 31. Nf2 {[%emt 0:0:13]} Rd4 {[%emt 0:1:38]} 32. Neg4 {[%emt 0:4:24]} Nxg4 {[%emt 0:0:30]} 33. hxg4 {[%emt 0:0:35]} Qc7 {[%emt 0:2:30]} 34. Ne4 {[%emt 0:9:36]} Bxe4 {[%emt 0:1:15]} 35. fxe4 {[%emt 0:1:6]} Qd8 {[%emt 0:0:52]} 36. Rf1 {[%emt 0:1:55]} Qg5 {[%emt 0:4:46]} 37. Qxa5 {[%emt 0:5:57]} Qxg4 {[%emt 0:0:6]} 38. Rf2 {[%emt 0:0:4]} Nxd3 {[%emt 0:5:5]} 39. Rfe2 {[%emt 0:1:23]} Nf4 {[%emt 0:0:26]} 40. Rf2 {[%emt 0:0:29]} Rd1+ {[%emt 0:0:57]} 41. Kh2 {[%emt 0:30:2]} g5 {[%emt 0:0:0]} 42. Qa7 {[%emt 0:0:0]} Red6 {[%emt 0:2:13]} 43. Qxc5 {[%emt 0:0:0]} R6d2 {[%emt 0:4:17]} 44. Ref3 {[%emt 0:0:0]} Qxg2+ {[%emt 0:1:23]} 0-1

[Event "56th Biel Festival MTO 2023"]
[White "Besou,Hussain"]
[Black "Kocharin,Timur"]
[Site "Biel"]
[Round "9.27"]
[Annotator "ChessBase"]
[Result "1-0"]
[Date "2023.07.27"]
[WhiteElo "2348"]
[BlackElo "2225"]
[PlyCount "93"]
[TimeControl "60"]

1. d4 {[%emt 0:0:0]} Nf6 {[%emt 0:0:0]} 2. c4 {[%emt 0:0:0]} e6 {[%emt 0:0:0]} 3. Nc3 {[%emt 0:0:0]} d5 {[%emt 0:0:0]} 4. cxd5 {[%emt 0:0:0]} exd5 {[%emt 0:0:0]} 5. Bg5 {[%emt 0:0:0]} Bb4 {[%emt 0:0:0]} 6. Nf3 {[%emt 0:0:0]} h6 {[%emt 0:0:0]} 7. Bh4 {[%emt 0:0:0]} g5 {[%emt 0:2:22]} 8. Bg3 {[%emt 0:0:0]} Ne4 {[%emt 0:1:0]} 9. Nd2 {[%emt 0:0:0]} Nxg3 {[%emt 0:3:39]} 10. hxg3 {[%emt 0:0:0]} c6 {[%emt 0:4:21]} 11. e3 {[%emt 0:0:0]} Bf5 {[%emt 0:4:44]} 12. Nf3 {[%emt 0:9:8]} Be7 {[%emt 0:7:24]} 13. Bd3 {[%emt 0:1:54]} Bxd3 {[%emt 0:11:5]} 14. Qxd3 {[%emt 0:0:8]} Na6 {[%emt 0:10:2]} 15. Ne5 {[%emt 0:13:7]} Bf6 {[%emt 0:5:28]} 16. Nxc6 {[%emt 0:3:24]} Qc7 {[%emt 0:6:9]} 17. Ne5 {[%emt 0:0:37]} Bxe5 {[%emt 0:0:20]} 18. dxe5 {[%emt 0:0:55]} Qxe5 {[%emt 0:2:0]} 19. Qxd5 {[%emt 0:7:26]} Qxd5 {[%emt 0:0:24]} 20. Nxd5 {[%emt 0:0:5]} O-O-O {[%emt 0:0:21]} 21. O-O-O {[%emt 0:0:25]} Nc5 {[%emt 0:4:38]} 22. f3 {[%emt 0:1:37]} Ne6 {[%emt 0:2:10]} 23. g4 {[%emt 0:0:28]} Ng7 {[%emt 0:1:48]} 24. e4 {[%emt 0:4:43]} h5 {[%emt 0:6:43]} 25. gxh5 {[%emt 0:1:4]} Rxh5 {[%emt 0:7:37]} 26. Rxh5 {[%emt 0:0:18]} Nxh5 {[%emt 0:0:8]} 27. Rh1 {[%emt 0:0:2]} Ng3 {[%emt 0:1:57]} 28. Rh7 {[%emt 0:0:34]} Ne2+ {[%emt 0:1:3]} 29. Kc2 {[%emt 0:0:37]} Rd7 {[%emt 0:0:50]} 30. Nf6 {[%emt 0:2:23]} Rd8 {[%emt 0:2:22]} 31. Rxf7 {[%emt 0:1:8]} Nd4+ {[%emt 0:1:5]} 32. Kc3 {[%emt 0:5:33]} Ne2+ {[%emt 0:0:19]} 33. Kc4 {[%emt 0:0:25]} Nf4 {[%emt 0:1:54]} 34. Nd5 {[%emt 0:2:16]} Nxg2 {[%emt 0:1:43]} 35. e5 {[%emt 0:1:2]} Nh4 {[%emt 0:3:30]} 36. Rf6 {[%emt 0:4:27]} Kd7 {[%emt 0:3:28]} 37. e6+ {[%emt 0:0:30]} Kc8 {[%emt 0:1:35]} 38. Kc5 {[%emt 0:0:59]} Re8 {[%emt 0:7:21]} 39. a4 {[%emt 0:44:45]} Nxf3 {[%emt 0:0:30]} 40. Rxf3 {[%emt 0:0:30]} Rxe6 {[%emt 0:0:30]} 41. Rf8+ {[%emt 0:30:30]} Kd7 {[%emt 0:30:30]} 42. Rf7+ {[%emt 0:0:30]} Kc8 {[%emt 0:0:30]} 43. Rg7 {[%emt 0:0:30]} b6+ {[%emt 0:0:30]} 44. Kd4 {[%emt 0:0:30]} Re2 {[%emt 0:0:30]} 45. b4 {[%emt 0:0:30]} Kb8 {[%emt 0:0:30]} 46. Rxg5 {[%emt 0:0:30]} Ra2 {[%emt 0:0:30]} 47. Nc3 {[%emt 0:0:30]} 1-0

[Event "56th Biel Festival MTO 2023"]
[White "Zhang,Lanlin"]
[Black "Urh,Zala"]
[Site "Biel"]
[Round "9.28"]
[Annotator "ChessBase"]
[Result "1-0"]
[Date "2023.07.27"]
[WhiteElo "2194"]
[BlackElo "2231"]
[PlyCount "73"]
[TimeControl "60"]

1. e4 {[%emt 0:0:0]} c5 {[%emt 0:0:0]} 2. Nf3 {[%emt 0:0:0]} e6 {[%emt 0:0:0]} 3. d4 {[%emt 0:0:0]} cxd4 {[%emt 0:0:0]} 4. Nxd4 {[%emt 0:0:0]} Nf6 {[%emt 0:0:0]} 5. Bd3 {[%emt 0:0:0]} Nc6 {[%emt 0:0:0]} 6. Nxc6 {[%emt 0:0:0]} bxc6 {[%emt 0:0:0]} 7. O-O {[%emt 0:0:0]} d5 {[%emt 0:0:0]} 8. Nd2 {[%emt 0:2:7]} Bd6 {[%emt 0:0:0]} 9. Qe2 {[%emt 0:2:2]} Qc7 {[%emt 0:0:2]} 10. h3 {[%emt 0:2:21]} O-O {[%emt 0:0:17]} 11. c4 {[%emt 0:0:27]} d4 {[%emt 0:1:25]} 12. Nb3 {[%emt 0:3:37]} e5 {[%emt 0:4:31]} 13. c5 {[%emt 0:18:43]} Be7 {[%emt 0:0:15]} 14. f4 {[%emt 0:0:4]} Nd7 {[%emt 0:6:54]} 15. f5 {[%emt 0:6:41]} a5 {[%emt 0:1:46]} 16. a4 {[%emt 0:2:2]} Rb8 {[%emt 0:1:58]} 17. Qc2 {[%emt 0:1:28]} Qa7 {[%emt 0:5:36]} 18. Bd2 {[%emt 0:20:12]} Nxc5 {[%emt 0:27:37]} 19. Nxa5 {[%emt 0:7:24]} Nxd3 {[%emt 0:12:6]} 20. Nxc6 {[%emt 0:10:49]} Qc7 {[%emt 0:9:38]} 21. Nxe7+ {[%emt 0:0:5]} Qxe7 {[%emt 0:0:3]} 22. Qxd3 {[%emt 0:0:5]} Qh4 {[%emt 0:0:49]} 23. b4 {[%emt 0:0:31]} Bb7 {[%emt 0:0:24]} 24. Rae1 {[%emt 0:2:20]} Kh8 {[%emt 0:6:1]} 25. f6 {[%emt 0:6:58]} g5 {[%emt 0:0:30]} 26. Re2 {[%emt 0:4:40]} Rg8 {[%emt 0:0:38]} 27. Be1 {[%emt 0:0:12]} Qh5 {[%emt 0:0:22]} 28. Bg3 {[%emt 0:0:5]} Rbc8 {[%emt 0:3:14]} 29. Rc2 {[%emt 0:6:0]} g4 {[%emt 0:1:3]} 30. h4 {[%emt 0:1:44]} Qh6 {[%emt 0:1:24]} 31. Rxc8 {[%emt 0:0:3]} Rxc8 {[%emt 0:0:1]} 32. Bxe5 {[%emt 0:0:28]} Qxh4 {[%emt 0:0:45]} 33. Bg3 {[%emt 0:0:21]} Qg5 {[%emt 0:2:48]} 34. Qxd4 {[%emt 0:0:4]} h5 {[%emt 0:0:3]} 35. Rf5 {[%emt 0:1:3]} Qh6 {[%emt 0:3:58]} 36. Bf4 {[%emt 0:0:10]} Qg6 {[%emt 0:1:7]} 37. Qe5 {[%emt 0:0:10]} 1-0

[Event "56th Biel Festival MTO 2023"]
[White "Jain Kashish Manoj"]
[Black "Collin,Moritz Valentin"]
[Site "Biel"]
[Round "9.29"]
[Annotator "ChessBase"]
[Result "1-0"]
[Date "2023.07.27"]
[WhiteElo "2375"]
[BlackElo "2132"]
[PlyCount "69"]
[TimeControl "60"]

1. e4 {[%emt 0:0:0]} c6 {[%emt 0:0:0]} 2. d4 {[%emt 0:0:0]} d5 {[%emt 0:0:0]} 3. e5 {[%emt 0:0:0]} Bf5 {[%emt 0:0:0]} 4. Nf3 {[%emt 0:0:0]} e6 {[%emt 0:0:0]} 5. Be2 {[%emt 0:0:0]} Ne7 {[%emt 0:0:0]} 6. O-O {[%emt 0:0:0]} Ng6 {[%emt 0:0:0]} 7. a4 {[%emt 0:0:0]} c5 {[%emt 0:0:0]} 8. Be3 {[%emt 0:0:0]} Nc6 {[%emt 0:0:0]} 9. dxc5 {[%emt 0:0:0]} Qc7 {[%emt 0:0:0]} 10. Nd4 {[%emt 0:0:0]} Nxd4 {[%emt 0:0:0]} 11. Qxd4 {[%emt 0:1:50]} Nxe5 {[%emt 0:3:40]} 12. Na3 {[%emt 0:13:14]} a6 {[%emt 0:4:33]} 13. b4 {[%emt 0:1:58]} Be7 {[%emt 0:16:14]} 14. Bf4 {[%emt 0:12:58]} Bf6 {[%emt 0:2:5]} 15. Qe3 {[%emt 0:6:5]} O-O-O {[%emt 0:9:58]} 16. Rae1 {[%emt 0:5:11]} g5 {[%emt 0:7:25]} 17. Bg3 {[%emt 0:0:18]} d4 {[%emt 0:3:53]} 18. Qb3 {[%emt 0:0:7]} h5 {[%emt 0:10:53]} 19. Nc4 {[%emt 0:3:5]} h4 {[%emt 0:0:53]} 20. Bxe5 {[%emt 0:0:13]} Bxe5 {[%emt 0:0:8]} 21. Nxe5 {[%emt 0:0:14]} Qxe5 {[%emt 0:0:10]} 22. Bxa6 {[%emt 0:1:48]} Qf4 {[%emt 0:4:59]} 23. Bb5 {[%emt 0:20:0]} d3 {[%emt 0:3:45]} 24. Re3 {[%emt 0:0:22]} dxc2 {[%emt 0:1:43]} 25. c6 {[%emt 0:0:7]} Rd2 {[%emt 0:6:20]} 26. cxb7+ {[%emt 0:3:19]} Kb8 {[%emt 0:1:3]} 27. Rc3 {[%emt 0:3:52]} h3 {[%emt 0:11:24]} 28. Ba6 {[%emt 0:8:51]} hxg2 {[%emt 0:8:25]} 29. Rc8+ {[%emt 0:0:26]} Ka7 {[%emt 0:0:6]} 30. Qe3+ {[%emt 0:0:27]} Kxa6 {[%emt 0:2:5]} 31. Rc6+ {[%emt 0:0:6]} Kxb7 {[%emt 0:0:26]} 32. Qb6+ {[%emt 0:0:6]} Ka8 {[%emt 0:0:11]} 33. Qa6+ {[%emt 0:0:1]} Kb8 {[%emt 0:0:9]} 34. Qb5+ {[%emt 0:0:4]} Ka7 {[%emt 0:0:8]} 35. Ra6# {[%emt 0:0:5]} 1-0